Cogmind - Beta 16 @@@ ROGUE MODE // 2025.12.26 @ 20:37:04 Player: unq Result: Self-destructed Performance ------------- Evolutions (5) 2500 Regions Visited (21) 4200 Robots Destroyed (346) 1730 Value Destroyed (15638) 15638 Prototype IDs (63) 1260 Alien Tech Used (0) 0 Bonus (4689) 4689 TOTAL SCORE: 30017 Bonus ------- High Alert Combat Kills 2659 Follower Combat Kills 557 Entered Garrisons 600 Aligned with FarCom 300 Met Data Miner 300 Acquired ECA 300 Friendly Fire -27 Cogmind --------- Core Integrity 723/1000 Matter 239/300 Energy 310/310 System Corruption 5% Temperature Cool (0) Movement Walking (260) Ox2 Location -5/Warlord Parts ------- > --- POWER (1) -------- Reinforced Fission Core > --- PROPULSION (5) --- Medium Treads Carbon-fiber Leg Carbon-fiber Leg Carbon-fiber Leg > --- UTILITY (8) ------ Advanced Cooling System High-capacity Storage Unit Advanced Terrain Scanner Advanced Terrain Scan Processor Improved Targeting Computer Improved Target Analyzer Improved Medium Armor Plating > --- WEAPON (3) ------- Heavy Plasma Cannon Advanced Plasma Cannon KE Penetrator > --- INVENTORY (20) --- Light Angular Momentum Engine Light Fission Core Wheel Compact Battery (200) High-capacity Matter Pod (200) Makeshift Trap Scanner Encrypted Comm Array Improved Kinecellerator Hardened Medium Armor Plating EM Shield Improved Shield Generator Force Field Improved Component Analysis Suite Trap Reconfigurator Mini Drone Bay (2/3) Heavy Shock Bomb Launcher Mini Grenade Launcher Plasma Cutter Power Sword Peak State ------------ > --- POWER ------------ Reinforced Fission Core > --- PROPULSION ------- Medium Treads Medium Treads Medium Treads Carbon-fiber Leg Wheel > --- UTILITY ---------- Advanced Cooling System High-capacity Storage Unit Advanced Terrain Scanner Advanced Terrain Scan Processor Improved Targeting Computer Improved Target Analyzer Improved Weapon Cycler Improved Medium Armor Plating > --- WEAPON ----------- Heavy Plasma Cannon Advanced Plasma Cannon KE Penetrator > --- INVENTORY -------- Light Angular Momentum Engine Light Fission Core Carbon-fiber Leg Carbon-fiber Leg Compact Battery High-capacity Matter Pod Makeshift Trap Scanner Makeshift Trap Scanner Encrypted Comm Array Improved Kinecellerator Hardened Medium Armor Plating EM Shield Force Field Improved Component Analysis Suite Trap Reconfigurator Mini Drone Bay Heavy Shock Bomb Launcher Mini Grenade Launcher Plasma Cutter Power Sword [Rating: 81] Favorites ----------- Power Heavy Ion Engine Engine Heavy Ion Engine Power Core Enhanced Nuclear Core Reactor Light Antimatter Reactor Propulsion Light Treads Treads Light Treads Leg Carbon-fiber Leg Wheel Armored Huge Wheel Flight Unit Improved Flight Unit Utility High-capacity Storage Unit Device Improved Heat Sink Storage High-capacity Storage Unit Processor Advanced Terrain Scan Processor Hackware Hacking Suite Protection Hardened Medium Armor Plating Weapon Autogun Energy Gun Improved Medium Laser Energy Cannon Heavy Plasma Cannon Ballistic Gun Autogun Launcher Mini Grenade Launcher Special Weapon Mining Laser Impact Weapon Heavy Mace Slashing Weapon Power Sword Special Melee Weapon Datajack Build | -11 -10 -10 -9 -9 -9 -8 -8 -8 -8 -8 -7 -7 -6 -6 -6 -6 -5 -5 -5 -5 -5 ------- Run | Yrd Mat Min Mat Min Exi Min Mat Gar Mat Gar Fac Gar Fac Low Low Dat Pro Fac Upp Upp War Slots Evolved 10 | . . . 2 . . . 2 . . . 2 . 2 . . . . 2 . . . Power . | . . . . . . . . . . . . . . . . . . . . . . Propulsion 3 | . . . 1 . . . 1 . . . . . . . . . . 1 . . . Utility 6 | . . . . . . . 1 . . . 2 . 2 . . . . 1 . . . Weapon 1 | . . . 1 . . . . . . . . . . . . . . . . . . Parts Attached 213 | 7 17 2 34 2 1 . 19 10 4 14 17 12 19 . 7 . 9 13 18 6 2 Power 17 | 1 2 . 3 . . . . 1 . 1 2 1 1 . . . 1 2 2 . . Engine 10 | 1 2 . 3 . . . . 1 . 1 1 . . . . . . 1 . . . Core 5 | . . . . . . . . . . . 1 . 1 . . . . 1 2 . . Reactor 2 | . . . . . . . . . . . . 1 . . . . 1 . . . . Propulsion 55 | 2 5 . 12 . . . 9 5 . 4 . 1 2 . . . 3 3 5 2 2 Treads 30 | . 3 . 11 . . . 9 3 . . . . . . . . 1 . 1 2 . Leg 7 | 2 2 . . . . . . . . . . . . . . . . . 1 . 2 Wheel 17 | . . . . . . . . 2 . 4 . 1 2 . . . 2 3 3 . . Hover . | . . . . . . . . . . . . . . . . . . . . . . Flight 1 | . . . 1 . . . . . . . . . . . . . . . . . . Utility 71 | 2 4 . 4 1 . . 4 1 3 7 7 2 10 . 7 . 3 7 6 3 . Device 36 | 1 2 . 3 . . . 2 . 2 3 3 2 3 . 2 . 2 4 6 1 . Storage 8 | 1 2 . 1 . . . 1 . . . . . . . 3 . . . . . . Processor 9 | . . . . . . . . . 1 1 1 . 4 . 2 . . . . . . Hackware 5 | . . . . . . . 1 . . 1 1 . . . . . . 2 . . . Protection 13 | . . . . 1 . . . 1 . 2 2 . 3 . . . 1 1 . 2 . Artifact . | . . . . . . . . . . . . . . . . . . . . . . Weapon 70 | 2 6 2 15 1 1 . 6 3 1 2 8 8 6 . . . 2 1 5 1 . Energy Gun 22 | 2 1 1 7 . . . 3 1 . 1 2 1 1 . . . . . 2 . . Energy Cannon 5 | . . . 1 . . . . . . . . . 2 . . . . 1 . 1 . Ballistic Gun 29 | . 4 . 6 1 . . 2 . . 1 6 5 1 . . . 1 . 2 . . Ballistic Cannon . | . . . . . . . . . . . . . . . . . . . . . . Launcher 8 | . . 1 1 . . . 1 1 . . . 1 1 . . . 1 . 1 . . Special Weapon 2 | . 1 . . . . . . 1 . . . . . . . . . . . . . Impact Weapon 1 | . . . . . . . . . 1 . . . . . . . . . . . . Slashing Weapon 2 | . . . . . . . . . . . . 1 1 . . . . . . . . Piercing Weapon . | . . . . . . . . . . . . . . . . . . . . . . Special Melee Weapon 1 | . . . . . 1 . . . . . . . . . . . . . . . . Unidentified Prototypes 9 | . . . 4 . . . 3 . . . 2 . . . . . . . . . . Corrupted Parts 2 | . . . . . . . . . . . . . . . . . . . . . 2 System Corruption 5 | . . . . . . . . . . . . . . . . . . . . . 5 Parts Lost 53 | . . . 2 . . . 1 3 1 5 . 2 5 . 5 . 11 3 11 2 2 Power 7 | . . . 1 . . . . 1 . 1 . . 1 . . . 1 1 1 . . Propulsion 15 | . . . . . . . 1 1 . 1 . . 2 . . . 2 1 6 . 1 Utility 17 | . . . . . . . . . 1 1 . 2 2 . 4 . 3 . 2 1 1 Weapon 14 | . . . 1 . . . . 1 . 2 . . . . 1 . 5 1 2 1 . Highest Loss Streak 11 | . . . 1 . . . 1 3 1 3 . 1 3 . 2 . 11 3 4 2 2 To Critical Strikes . | . . . . . . . . . . . . . . . . . . . . . . Average Backups 17 | 2 12 15 16 19 19 20 19 17 18 16 15 17 18 20 19 20 16 18 18 19 19 Power . | . . 1 1 1 1 1 1 . 1 . . 1 . 1 1 1 . . 1 2 2 Propulsion 2 | 1 2 3 3 4 4 4 3 2 3 3 2 2 1 1 2 4 2 2 1 2 1 Utility 5 | . 2 2 3 4 5 7 6 7 6 6 5 3 4 6 4 4 4 6 7 10 11 Weapon 7 | . 7 9 7 8 7 7 7 6 6 5 6 9 10 10 9 9 6 6 5 3 3 Tool/Special . | . . . . . . . . . . . . . . . . . . . . . . Unused Backups 40 | . 3 . 8 . 1 . 3 . 2 4 2 . 1 . 1 . 2 5 . 2 6 Power 4 | . . . 2 . . . . . 1 . . . . . . . . . . . 1 Propulsion 9 | . 1 . 1 . . . 1 . . . . . 1 . 1 . 2 2 . . . Utility 19 | . 1 . 1 . . . 2 . 1 4 1 . . . . . . 2 . 2 5 Weapon 8 | . 1 . 4 . 1 . . . . . 1 . . . . . . 1 . . . Tool/Special . | . . . . . . . . . . . . . . . . . . . . . . Average Slot Usage (%) 91 | . 99 100 99 100 80 100 99 99 80 87 90 91 86 80 78 70 81 91 87 90 96 Engine 6 | . 14 14 10 11 11 11 9 8 9 9 6 . . . . . . 2 . . . Core 1 | . . . . . . . . . . . . 6 6 6 6 6 2 . 4 5 5 Treads 14 | . 21 28 32 33 33 33 35 35 . . . . . . . . . . 1 7 12 Wheel 9 | . . . . . . . . . 18 24 23 23 16 13 13 13 15 20 12 5 2 Device 10 | . 14 14 11 5 . . 8 9 6 9 19 14 12 13 6 6 4 4 21 19 17 Storage 9 | . 14 14 11 11 11 11 9 9 9 9 7 7 6 6 12 13 8 11 5 5 5 Processor 6 | . . . . . . . . . 1 . 1 7 15 13 18 26 23 17 17 17 17 Protection 5 | . . . . 5 11 11 9 9 9 7 8 7 7 6 . . 1 4 . 3 4 Energy Gun 3 | . 10 16 15 . . . . . . 1 3 3 2 . . . . . 4 . . Energy Cannon 2 | . . . 1 5 . . . . 9 2 . . 2 6 6 . 2 2 2 7 9 Ballistic Gun 16 | . 16 7 14 27 4 33 26 23 15 20 16 16 9 13 12 3 14 11 7 8 5 Peak Build Rating 81 | 7 12 13 23 22 21 21 37 40 43 45 57 58 76 74 73 66 71 74 74 81 81 Average Rating 42 | 5 9 12 20 21 16 20 30 29 41 40 49 55 66 73 62 51 59 65 70 74 78 On Entrance 42 | . 7 12 12 22 21 21 21 29 40 42 41 54 57 74 73 66 66 62 63 74 81 Avg Prop Armor Cover (%) 12 | . . . . . . . . . . . . . . . . . 15 7 12 12 13 Naked Turns . | . . . . . . . . . . . . . . . . . . . . . . Heaviest Build 103 | 13 33 34 59 65 65 65 72 72 72 69 78 75 93 86 86 76 91 75 86 103 96 Greatest Support 83 | 20 40 40 66 63 63 63 83 80 56 56 52 52 56 56 56 56 60 72 70 10 45 Greatest Overweight (x) 10 | . . . . 1 1 1 1 2 1 2 1 1 2 1 1 1 3 1 8 10 9 Average Overweight (x) . | . . . . . . 1 . . 1 1 1 1 1 1 1 . . . 2 8 5 Largest Inventory Capacity 20 | 8 15 15 20 20 20 20 20 20 20 20 20 20 20 20 20 20 20 20 20 20 20 Average Capacity 19 | 7 12 15 17 20 20 20 20 20 20 20 20 20 20 20 20 20 20 20 20 20 20 Most Carried 20 | 5 15 15 20 20 20 20 20 20 20 20 20 20 20 20 20 20 20 20 20 20 20 Average Carried 18 | 2 12 15 16 19 19 20 19 17 19 19 19 19 19 20 19 20 16 18 18 19 19 Final Capacity 20 | 8 15 15 20 20 20 20 20 20 20 20 20 20 20 20 20 20 20 20 20 20 20 Final Carried 20 | 5 15 15 20 20 20 20 20 20 20 20 20 20 20 20 20 20 12 20 20 20 19 Class Distribution -------------------- 20% | Gunner 15% | Mutant 14% | Skirmisher 10% | Scavenger-Gunner 7% | Tank 6% | Scavenger-Skirmisher 5% | Scavenger-Tank 5% | Scientist-Tank 3% | Scientist-Assassin 3% | Scientist-Skirmisher Dominant Class ---------------- Mutant | -10/Materials Mutant | -10/Mines Gunner | -9/Materials Tank | -9/Mines Mutant | -9/Exiles Skirmisher | -8/Mines Scavenger-Tank | -8/Materials Scientist-Tank | -8/Garrison Scavenger-Skirmisher | -8/Materials Skirmisher | -8/Garrison Scientist-Assassin | -7/Factory Gunner | -7/Garrison Scientist-Assassin | -6/Factory Skirmisher | -6/Lower Caves Gunner | -6/Lower Caves Mutant | -6/Data Miner Gunner | -5/Proximity Caves Scavenger-Skirmisher | -5/Factory Scavenger-Gunner | -5/Upper Caves Scavenger-Gunner | -5/Upper Caves Scavenger-Gunner | -5/Warlord Resources | -11 -10 -10 -9 -9 -9 -8 -8 -8 -8 -8 -7 -7 -6 -6 -6 -6 -5 -5 -5 -5 -5 ----------- Run | Yrd Mat Min Mat Min Exi Min Mat Gar Mat Gar Fac Gar Fac Low Low Dat Pro Fac Upp Upp War Matter Collected 10799 | 270 439 146 1018 104 16 121 1423 899 525 986 695 993 838 240 279 . 483 312 841 171 . Remotely . | . . . . . . . . . . . . . . . . . . . . . . Salvage Created 15385 | 124 515 300 1986 166 . 103 2112 910 783 1608 796 1375 1366 394 691 . 592 341 1003 220 . Parts 738 | 12 28 19 120 12 . 3 101 55 58 62 40 59 55 15 25 . 25 9 32 8 . Haulers Intercepted 13 | . 2 . 6 . . . 3 . 1 . 1 . . . . . . . . . . Recyclers Shooed 6 | 1 2 . . 1 . . 2 . . . . . . . . . . . . . . Parts Field Recycled . | . . . . . . . . . . . . . . . . . . . . . . Retrieved Matter . | . . . . . . . . . . . . . . . . . . . . . . Parts Self-Destructed 111 | . . . . . . . . . . . . . . 14 28 . 33 . 26 10 . Prevented 4 | . . . . . . . . . . . . . . . . . . . 4 . . Parts Restored . | . . . . . . . . . . . . . . . . . . . . . . Kills | -11 -10 -10 -9 -9 -9 -8 -8 -8 -8 -8 -7 -7 -6 -6 -6 -6 -5 -5 -5 -5 -5 ------- Run | Yrd Mat Min Mat Min Exi Min Mat Gar Mat Gar Fac Gar Fac Low Low Dat Pro Fac Upp Upp War Combat Hostiles Destroyed 279 | . 9 11 39 4 . . 28 25 18 26 8 32 21 7 15 . 10 1 21 4 . Melee 1 | . . . . . . . . . . . . . . . . . 1 . . . . Guns 202 | . 9 11 31 2 . . 28 12 11 17 8 26 13 6 7 . 9 1 10 1 . Cannons 36 | . . . 1 . . . . . 7 8 . . 7 1 4 . . . 5 3 . AOE 36 | . . . 6 2 . . . 13 . . . 6 . . 3 . . . 6 . . Classes Destroyed 16 | 2 2 1 7 . . . 1 1 . 1 . . 1 . . . . . . . . Worker 11 | . . . 3 . . . 3 . . . 2 . 1 . . . . 2 . . . Builder 9 | . . . 1 . . . 3 . 1 . 2 . 2 . . . . . . . . Tunneler 5 | 3 . . . . . 1 . . . . . . . . . . . 1 . . . Hauler 13 | . 2 . 6 . . . 3 . 1 . 1 . . . . . . . . . . Recycler 16 | 1 1 . 2 . . 1 4 . . . 4 . 1 . . . . 2 . . . Operator 4 | . . . 1 . . . 1 . . . . . 1 . . . . 1 . . . Watcher 9 | . . . 4 . . . 3 . 1 1 . . . . . . . . . . . Swarmer 63 | . . 3 11 . . . 3 7 7 4 . 13 . 2 3 . 2 . 8 . . Cutter 3 | . . . . . . . . 3 . . . . . . . . . . . . . Saboteur 3 | . . . . . . . . . . . . . 2 . 1 . . . . . . Grunt 124 | . 9 8 17 3 . . 16 13 1 12 3 9 8 4 7 . 3 . 9 2 . Brawler 13 | . . . 1 . . . 1 . 2 1 . 3 . . 2 . 2 . 1 . . Duelist 12 | . . . 1 1 . . . . 1 3 1 . 3 . 1 . . . 1 . . Sentry 39 | . . . 9 . . . 6 2 7 2 1 5 3 1 . . 1 . 2 . . Hunter 8 | . . . . . . . 2 . . 2 1 2 . . . . 1 . . . . Programmer 14 | . . . . . . . . . . 2 2 . 5 . 1 . 1 1 . 2 . Best Kill Streak 13 | 2 6 3 7 2 . 1 7 13 7 6 4 7 6 4 8 . 6 1 6 2 . Combat Bots Only 13 | . 5 3 4 2 . . 5 13 7 6 4 7 5 4 8 . 6 1 6 2 . Max Kills in Single Turn 4 | 1 1 1 4 2 . 1 2 3 2 2 2 3 2 1 2 . 2 1 2 1 . Gunslinging 1 | . . . 1 . . . 1 . . . . . 1 . . . . . . . . Exploded 3 | . . . 3 2 . . . 3 . . . 3 . . 2 . . . 2 . . Melee 1 | . . . . . . . . . . . . . . . . . 1 . . . . Uniques/NPCs Destroyed . | . . . . . . . . . . . . . . . . . . . . . . Combat | -11 -10 -10 -9 -9 -9 -8 -8 -8 -8 -8 -7 -7 -6 -6 -6 -6 -5 -5 -5 -5 -5 -------- Run | Yrd Mat Min Mat Min Exi Min Mat Gar Mat Gar Fac Gar Fac Low Low Dat Pro Fac Upp Upp War Hostile Shots Fired 1255 | . 48 40 135 10 . 1 91 74 33 108 47 163 113 53 87 . 81 11 114 16 30 Missed 376 | . 16 6 32 6 . 1 25 28 8 25 12 49 41 13 31 . 22 2 43 6 10 Hits 879 | . 32 34 103 4 . . 66 46 25 83 35 114 72 40 56 . 59 9 71 10 20 Melee 21 | . . . . 1 . . . 1 . 4 . 3 7 . . . 3 . 2 . . Projectile 858 | . 32 34 103 3 . . 66 45 25 79 35 111 65 40 56 . 56 9 69 10 20 AOE 3 | . . . . . . . . 2 . . . . . . . . . 1 . . . Critical Strikes 32 | . . . 3 . . . 3 . . 7 4 1 4 . 1 . 2 . 3 . 4 Damage Taken 13263 | . 374 445 1301 96 . . 785 711 320 1508 350 1264 1311 416 794 . 1251 345 1418 205 369 Core 1767 | . 39 103 244 16 . . 34 64 . 226 21 87 244 22 151 . 239 43 153 81 . Absorbed by Shields 574 | . . . . . . . 192 116 . 8 92 121 . . . . . . 45 . . Ignored by Resistances 106 | . . . . . . . . . . . 6 . 15 . . . 85 . . . . Regen/Repaired (Parts) 1122 | . . . 99 . . . 50 . 217 . 317 . 439 . . . . . . . . Core Remaining (%) 54 | 100 . 43 . . . 35 . . . 41 . 84 . . . . 22 . . . . Volleys Fired 874 | 13 57 32 107 8 . 5 98 105 27 88 23 75 68 25 25 . 21 24 61 12 . Largest 3 | 2 2 2 3 3 . 3 3 3 3 3 3 3 3 3 3 . 3 3 3 3 . Hottest 221 | 100 100 130 135 113 . 69 100 100 124 180 136 160 200 150 153 . 146 98 163 221 . Shots Fired 2034 | 26 110 60 284 24 . 15 284 161 74 199 66 203 146 64 59 . 57 44 124 32 2 Gun 1675 | 26 106 56 258 24 . 15 279 96 46 141 66 198 95 39 33 . 54 29 94 19 1 Cannon 261 | . . . 11 . . . . 22 28 58 . . 51 25 23 . . 15 14 13 1 Launcher 44 | . . 4 2 . . . . 11 . . . 5 . . 3 . 3 . 16 . . Special 54 | . 4 . 13 . . . 5 32 . . . . . . . . . . . . . Kinetic 1301 | . 53 22 124 16 . 15 279 96 46 126 61 168 77 39 33 . 44 29 53 19 1 Thermal 653 | 26 57 34 152 . . . 5 54 28 73 5 30 69 25 23 . 10 15 33 13 1 Explosive 40 | . . 4 2 . . . . 11 . . . 5 . . 3 . 3 . 12 . . Electromagnetic 40 | . . . 6 8 . . . . . . . . . . . . . . 26 . . Robot Hit Streak 26 | 8 19 11 15 4 . 7 26 26 8 20 9 19 20 11 9 . 18 18 19 15 5 Robot Miss Streak 10 | 10 3 6 6 4 . 3 5 4 3 5 5 5 1 2 4 . 3 1 6 3 . Penetration Max 2 | . . . . . . . 1 1 1 1 1 . 2 . 1 . 2 . . . . Secondary Targets 27 | . . 3 4 . . . 4 1 . 1 2 6 1 . . . 4 . 1 . . Max Gunslinging Chain 1 | . . 1 1 . . . 1 1 . 1 1 1 1 . . . 1 . 1 . . Shots Hit Robots 1250 | 11 76 42 155 16 4 10 165 80 42 121 44 144 95 37 34 . 46 28 84 15 1 Core Hits 673 | 5 29 42 91 9 . 3 73 51 25 62 27 81 48 11 26 . 30 11 43 6 . Critical Kills 26 | . . . . . . . . 1 2 2 . 1 4 4 2 . 5 . 4 1 . Critical Parts Destroyed 17 | . . . . . . . 3 . . 1 . 2 3 1 1 . 2 . 3 1 . Critical Strikes 62 | 2 2 . 8 . . . 3 1 2 5 . 3 7 5 3 . 9 1 9 2 . Burn 15 | 2 2 . 8 . . . . . . 2 . . . . . . . . 1 . . Meltdown 3 | . . . . . . . . . . 1 . . 1 . 1 . . . . . . Destroy 43 | . . . . . . . 3 1 2 2 . 3 6 5 2 . 9 1 7 2 . Sever 1 | . . . . . . . . . . . . . . . . . . . 1 . . Melee Attacks 111 | . . . . . 4 . . . 5 30 16 13 27 . . . 1 12 3 . . Impact 63 | . . . . . . . . . 5 30 16 12 . . . . . . . . . Slashing 44 | . . . . . . . . . . . . 1 27 . . . 1 12 3 . . Piercing . | . . . . . . . . . . . . . . . . . . . . . . Sneak Attacks 13 | . . . . . 4 . . . . . 3 . 2 . . . . 4 . . . Combat Hostiles . | . . . . . . . . . . . . . . . . . . . . . . Follow-up Attacks . | . . . . . . . . . . . . . . . . . . . . . . Damage Inflicted 29911 | 162 936 557 3269 339 . 166 3263 2428 1033 2693 1251 3515 2733 869 1420 . 1145 1004 2596 505 27 Guns 20848 | 162 918 557 2452 207 . 154 3162 1087 667 1613 885 2921 1940 612 620 . 904 492 1271 224 . Cannons 3639 | . . . 84 . . . . 429 338 911 . . 485 257 430 . . 66 331 281 27 Explosions 3862 | . . . 675 83 . . . 912 . . 148 537 . . 370 . 217 . 920 . . Melee 1237 | . . . . . . . . . . 169 218 57 254 . . . 24 441 74 . . Ramming 325 | . 18 . 58 49 . 12 101 . 28 . . . 54 . . . . 5 . . . Kinetic 16221 | . 484 181 954 129 . 154 3162 1087 667 1438 817 2183 1583 612 620 . 626 492 808 224 . Thermal 8181 | 162 434 376 1524 83 . . . 429 338 1086 216 738 842 257 430 . 278 66 614 281 27 Explosive 3306 | . . . 675 . . . . 912 . . . 537 . . 370 . 217 . 595 . . Electromagnetic 641 | . . . 58 78 . . . . . . . . . . . . . . 505 . . Impact 444 | . . . . . . . . . . 169 218 57 . . . . . . . . . Slashing 793 | . . . . . . . . . . . . . 254 . . . 24 441 74 . . Piercing . | . . . . . . . . . . . . . . . . . . . . . . Highest Corruption 7 | . . . 1 1 1 1 . . 2 2 1 . 1 1 2 2 7 3 3 4 5 Average Corruption 2 | . . . 1 1 1 1 . . 2 2 1 . 1 1 1 2 4 3 3 3 4 Corruption Purged 1 | . . . . . . . . . . . 1 . . . . . . . . . . Corruption Blocked . | . . . . . . . . . . . . . . . . . . . . . . Effects 194 | . . . 6 5 7 4 . . 12 34 5 . 4 10 5 1 26 24 26 18 7 Message Errors 54 | . . . . 3 3 . . . 2 7 2 . 1 1 2 . 7 9 6 9 2 Matter Fused 51 | . . . 2 . 2 2 . . 5 8 1 . 1 1 1 . 8 4 12 2 2 Heat Flow Errors 19 | . . . . . 2 . . . 1 2 . . 1 2 . . 6 2 1 2 . Energy Discharges 23 | . . . 1 1 . 1 . . 2 8 . . . 2 . 1 1 3 1 1 1 Parts Rejected 4 | . . . . . . . . . . 3 . . . . . . 1 . . . . Parts Fused 3 | . . . . . . . . . . 1 . . 1 . . . 1 . . . . Data Loss (minor) 12 | . . . 1 1 . 1 . . . 1 . . . 2 . . . 2 2 2 . Data Loss (major) 8 | . . . 1 . . . . . 1 1 . . . 1 . . 2 1 . 1 . Misfires 15 | . . . . . . . . . 1 2 2 . . 1 1 . . 3 3 . 2 Alerts 3 | . . . 1 . . . . . . . . . . . . . . . 1 1 . Weapon Failures 2 | . . . . . . . . . . 1 . . . . 1 . . . . . . Overload Shots 1 | . . . . . . . . . . . . . . . . . . . 1 . . Overflow Damage 517 | . . . . 1 . . . 9 2 73 99 24 94 9 . . . 156 22 28 . Projectiles 57 | . . . . . . . . . 2 . . . . 9 . . . 9 9 28 . Explosions 46 | . . . . . . . . 9 . . . 24 . . . . . . 13 . . Melee 414 | . . . . 1 . . . . . 73 99 . 94 . . . . 147 . . . Knockbacks 6 | . . . 1 1 . . 1 . 1 2 . . . . . . . . . . . Impact 6 | . . . 1 1 . . 1 . 1 2 . . . . . . . . . . . Kinetic . | . . . . . . . . . . . . . . . . . . . . . . Secondary . | . . . . . . . . . . . . . . . . . . . . . . Self-Inflicted Damage 594 | . . 23 131 21 . . . 139 14 . . . 54 . . . . 2 210 . . Shots 15 | . . 2 2 1 . . . 4 . . . . . . . . . . 6 . . Rammed 27 | . 6 . 2 5 . 2 10 . 1 . . . . . . . . 1 . . . Targets Rammed 30 | . 8 . 3 5 . 2 10 . 1 . . . . . . . . 1 . . . Kicked 2 | . 2 . . . . . . . . . . . . . . . . . . . . Crushed 1 | . . . 1 . . . . . . . . . . . . . . . . . . Highest Temperature 543 | 351 114 159 214 94 223 71 261 193 278 203 281 420 543 215 178 . 337 218 406 207 33 Average Temperature 70 | 143 32 37 35 31 104 33 62 36 77 51 87 113 116 63 72 . 126 46 138 80 33 Received Heat Transfer 3539 | . 198 204 378 21 . . 331 205 81 525 142 263 279 114 240 . 300 48 201 9 . Effects 8 | . . . . . . . 1 . . . . . 3 . . . 1 . 3 . . Shutdowns 1 | . . . . . . . . . . . . . 1 . . . . . . . . Energy Bleed 3 | . . . . . . . 1 . . . . . . . . . . . 2 . . Interference 1 | . . . . . . . . . . . . . . . . . . . 1 . . Short Circuit 1 | . . . . . . . . . . . . . 1 . . . . . . . . Damage (minor) 1 | . . . . . . . . . . . . . . . . . 1 . . . . Damage (core) 1 | . . . . . . . . . . . . . 1 . . . . . . . . Siege Activations . | . . . . . . . . . . . . . . . . . . . . . . Martial Activations . | . . . . . . . . . . . . . . . . . . . . . . Shielding Activations . | . . . . . . . . . . . . . . . . . . . . . . Robots Disrupted 3 | . . . . . . . . . . . . . . . . . . . 3 . . Combat Hostiles 3 | . . . . . . . . . . . . . . . . . . . 3 . . Robots Corrupted 3 | . . . . . . . . . . 1 2 . . . . . . . . . . Combat Hostiles . | . . . . . . . . . . . . . . . . . . . . . . Parts Fried 4 | . . . . . . . . . . 1 2 . . . . . . . 1 . . Impact Corruptions 6 | . . . . 1 . . . . . 2 3 . . . . . . . . . . Robots Melted 4 | . . . 1 . . . . . . 1 . . 1 . 1 . . . . . . Combat Hostiles 4 | . . . 1 . . . . . . 1 . . 1 . 1 . . . . . . Parts Melted 43 | 1 3 . 10 . . . . 1 1 6 1 4 4 1 4 . . . 4 3 . Heat Transferred 16420 | 629 1416 455 3581 . . . . 777 592 2146 249 1675 1525 400 650 . 625 100 1200 350 50 Parts Sabotaged . | . . . . . . . . . . . . . . . . . . . . . . Parts Stolen . | . . . . . . . . . . . . . . . . . . . . . . Parts Stripped . | . . . . . . . . . . . . . . . . . . . . . . Power Chain Reactions 1 | . . . . 1 . . . . . . . . . . . . . . . . . Alert | -11 -10 -10 -9 -9 -9 -8 -8 -8 -8 -8 -7 -7 -6 -6 -6 -6 -5 -5 -5 -5 -5 ------- Run | Yrd Mat Min Mat Min Exi Min Mat Gar Mat Gar Fac Gar Fac Low Low Dat Pro Fac Upp Upp War Maximum Alert Level 5 | . . . 2 1 . . 1 4 3 4 3 5 4 . . . . . . . . Low Security (%) 38 | 100 100 100 36 96 . 100 70 . . . . . . . . . . 100 . . . Level 1 11 | . . . 33 3 . . 29 11 33 4 . . . . . . . . . . . Level 2 13 | . . . 29 . . . . 36 66 12 . 6 . . . . . . . . . Level 3 26 | . . . . . . . . 34 . 32 100 50 92 . . . . . . . . Level 4 9 | . . . . . . . . 17 . 51 . 27 7 . . . . . . . . Level 5 1 | . . . . . . . . . . . . 16 . . . . . . . . . High Security . | . . . . . . . . . . . . . . . . . . . . . . Max Security . | . . . . . . . . . . . . . . . . . . . . . . Peak Influence 1930 | 10 124 158 533 212 . 68 357 1538 749 1592 909 1930 1121 . . . . 81 . . . Initial 1012 | . . 16 41 159 . . . 208 749 335 835 624 1012 . . . . . . . . Average 501 | 1 34 73 258 50 . 6 128 823 444 1090 813 1113 933 . . . . 5 . . . Influence Increases 11234 | 20 372 404 1329 103 . 106 952 1360 567 1307 587 1346 793 270 480 . 337 305 496 100 . Destroy 0b10 Robot/C 5880 | . 180 300 780 80 . 60 600 500 360 520 160 640 420 140 300 . 280 60 420 80 . Destroy 0b10 Robot/NC 380 | 20 15 . 90 . . 10 80 10 15 25 45 10 25 . . . . 35 . . . Destroy Leader 1052 | . 54 60 210 20 . 10 162 30 124 40 52 50 100 10 30 . 30 20 30 20 . Allied During Kill 107 | . . 25 . . . 11 7 . . . . 1 . . . . 27 35 1 . . Trap Triggered on 0b10 190 | . 20 . . . . . 10 . . 10 80 20 40 . . . . 10 . . . Successful Hack 308 | . 38 6 53 . . . 32 30 28 . 35 . 40 . . . . 46 . . . Select Force Hacks 120 | . 60 . 60 . . . . . . . . . . . . . . . . . . Disable Machine 435 | . . . 75 . . . 30 30 15 45 150 15 75 . . . . . . . . Anti-Garrison Action 1600 | . . . . . . . . 650 . 550 . 400 . . . . . . . . . Destroy Structure 382 | . 5 13 46 3 . . 16 80 10 57 20 30 48 . . . . 54 . . . Partial Spotted 30 | . . . . . . . . . . . 15 15 . . . . . . . . . Lose Combat Pursuer 750 | . . . 15 . . 15 15 30 15 60 30 165 45 120 150 . . 45 45 . . Influence Decreases 11234 | 20 328 340 1028 512 . 106 632 142 1589 231 1287 308 1754 709 543 467 337 305 496 100 . Entered New Map 4297 | . . 28 67 250 . . . 112 789 181 757 268 918 359 101 467 . . . . . Time Decay 5299 | 20 328 206 645 262 . 106 432 . 470 . 530 . 636 350 392 . 241 235 366 80 . Lost Part 486 | . . . 10 . . . 10 30 10 50 . 20 50 . 50 . 96 30 110 20 . Lost Ally 186 | . . 40 6 . . . 40 . 20 . . 20 . . . . . 40 20 . . Purge Threat 966 | . . 66 300 . . . 150 . 300 . . . 150 . . . . . . . . Squads Dispatched 52 | . 4 1 4 1 . . 6 . 4 . 9 . 12 . 1 . 1 9 . . . Investigation 15 | . 2 . 3 1 . . 4 . 2 . 1 . 1 . . . . 1 . . . Extermination 10 | . . . . . . . . . . . 3 . 4 . . . . 3 . . . Reinforcement 12 | . 2 . 1 . . . 2 . . . 4 . 1 . . . . 2 . . . Assault 10 | . . 1 . . . . . . . . 1 . 6 . 1 . 1 . . . . Garrison 5 | . . . . . . . . . 2 . . . . . . . . 3 . . . Intercept . | . . . . . . . . . . . . . . . . . . . . . . Searches Triggered . | . . . . . . . . . . . . . . . . . . . . . . Construction Impeded 2 | . . . . . . . . . . . 1 . . . . . . 1 . . . Haulers Reinforced . | . . . . . . . . . . . . . . . . . . . . . . Active Scanning Responses . | . . . . . . . . . . . . . . . . . . . . . . Cargo Convoy Interrupts . | . . . . . . . . . . . . . . . . . . . . . . Stealth | -11 -10 -10 -9 -9 -9 -8 -8 -8 -8 -8 -7 -7 -6 -6 -6 -6 -5 -5 -5 -5 -5 --------- Run | Yrd Mat Min Mat Min Exi Min Mat Gar Mat Gar Fac Gar Fac Low Low Dat Pro Fac Upp Upp War Distress Signals 11 | . 1 . 4 . . . 3 . . 1 2 . . . . . . . . . . Communications Jammed . | . . . . . . . . . . . . . . . . . . . . . . Distress Signals . | . . . . . . . . . . . . . . . . . . . . . . Times Spotted 390 | . 17 14 54 5 . 3 38 25 22 34 20 33 30 13 27 . 16 7 25 5 2 Peak Tracking Total 13 | . 3 3 6 2 . 3 7 10 5 5 5 7 5 4 13 . 7 4 7 2 2 Tactical Retreats 35 | . . . 1 . . 1 1 1 1 3 2 7 3 4 6 . . 2 3 . . Traps | -11 -10 -10 -9 -9 -9 -8 -8 -8 -8 -8 -7 -7 -6 -6 -6 -6 -5 -5 -5 -5 -5 ------- Run | Yrd Mat Min Mat Min Exi Min Mat Gar Mat Gar Fac Gar Fac Low Low Dat Pro Fac Upp Upp War Traps Triggered 21 | . 1 . . . . . 1 . 1 12 . 4 . . . . . 2 . . . Indirectly . | . . . . . . . . . . . . . . . . . . . . . . Trap Hack Attempts . | . . . . . . . . . . . . . . . . . . . . . . Triggered . | . . . . . . . . . . . . . . . . . . . . . . Disarmed . | . . . . . . . . . . . . . . . . . . . . . . Reprogrammed 4 | . 4 . . . . . . . . . . . . . . . . . . . . Reused 19 | . 2 . . . . . 1 . . 1 8 2 4 . . . . 1 . . . Traps Reconfigurated 80 | . . . . . . . 3 5 . . 61 . 5 . . . . 6 . . . Traps Extracted . | . . . . . . . . . . . . . . . . . . . . . . Installed 3 | . . . . . . . . . . 1 . 2 . . . . . . . . . Triggered 19 | . 2 . . . . . 1 . . 1 8 2 4 . . . . 1 . . . Most Traps Carried 3 | . . . . . . . . . . 3 2 2 . . . . . . . . . Machines | -11 -10 -10 -9 -9 -9 -8 -8 -8 -8 -8 -7 -7 -6 -6 -6 -6 -5 -5 -5 -5 -5 ---------- Run | Yrd Mat Min Mat Min Exi Min Mat Gar Mat Gar Fac Gar Fac Low Low Dat Pro Fac Upp Upp War Machines Disabled 52 | . . . 5 . . . 2 10 1 11 10 7 5 . . . . . . . 1 Max in Single Turn 9 | . . . 1 . . . 1 1 1 1 9 1 1 . . . . . . . 1 Garrison Access 1 | . . . . . . . . . . . . . 1 . . . . . . . . Garrison Relay 13 | . . . . . . . . 5 . 5 . 3 . . . . . . . . . Phase Generator 3 | . . . . . . . . 1 . 1 . 1 . . . . . . . . . Machines Repaired . | . . . . . . . . . . . . . . . . . . . . . . Machines Dismantled 8 | . . . . . . . . 3 . 2 . 3 . . . . . . . . . Machines Sabotaged . | . . . . . . . . . . . . . . . . . . . . . . Overloaded Fab Kills . | . . . . . . . . . . . . . . . . . . . . . . Hacking | -11 -10 -10 -9 -9 -9 -8 -8 -8 -8 -8 -7 -7 -6 -6 -6 -6 -5 -5 -5 -5 -5 --------- Run | Yrd Mat Min Mat Min Exi Min Mat Gar Mat Gar Fac Gar Fac Low Low Dat Pro Fac Upp Upp War Machines Accessed 108 | . 8 1 15 1 2 . 13 3 13 2 15 2 16 . . 4 . 13 . . . Terminals 59 | . 5 1 9 . . . 8 3 7 2 7 2 8 . . . . 7 . . . Fabricators 1 | . . . . . . . . . . . . . . . . . . 1 . . . Repair Stations 11 | . 1 . 2 . . . 1 . 1 . 2 . 2 . . . . 2 . . . Recycling Units 15 | . 2 . 2 . . . 1 . 2 . 3 . 4 . . . . 1 . . . Scanalyzers 9 | . . . 2 . . . 2 . 2 . 1 . 1 . . . . 1 . . . Garrison Access 6 | . . . . . . . 1 . 1 . 2 . 1 . . . . 1 . . . Total Hacks 329 | . 32 5 45 1 5 . 40 7 46 4 32 4 47 . . 28 . 33 . . . Successful 178 | . 17 2 28 1 5 . 23 2 28 . 11 . 20 . . 28 . 13 . . . Failed 147 | . 14 3 16 . . . 16 5 18 4 21 4 27 . . . . 19 . . . Catastrophic 29 | . 2 1 2 . . . 1 1 3 . 8 . 6 . . . . 5 . . . Database Lockouts 4 | . 1 . 1 . . . 1 . . . . . . . . . . 1 . . . Manual 113 | . 18 5 19 . 1 . 15 1 20 . 14 . 9 . . . . 11 . . . Terminals 175 | . 22 5 30 . . . 25 7 25 4 15 4 22 . . . . 16 . . . Fabricators 5 | . . . . . . . . . . . . . . . . . . 5 . . . Repair Stations 31 | . 4 . 4 . . . 2 . 6 . 5 . 7 . . . . 3 . . . Recycling Units 33 | . 6 . 2 . . . 2 . 6 . 6 . 9 . . . . 2 . . . Scanalyzers 37 | . . . 9 . . . 8 . 5 . 2 . 8 . . . . 5 . . . Garrison Access 14 | . . . . . . . 3 . 4 . 4 . 1 . . . . 2 . . . Terminal Hacks 77 | . 9 2 7 1 5 . 5 2 7 . 1 . 4 . . 28 . 6 . . . Record 15 | . . . . . 4 . . . . . . . . . . 11 . . . . . Part Schematic 9 | . . . . . . . . . . . . . . . . 8 . 1 . . . Robot Schematic 6 | . . . . . . . . . . . . . . . . 6 . . . . . Robot Analysis 2 | . 2 . . . . . . . . . . . . . . . . . . . . Prototype ID Bank 7 | . 1 . 1 . . . 1 . 1 . . . . . . 3 . . . . . Open Door 1 | . . . . 1 . . . . . . . . . . . . . . . . . Branch Access Points 2 | . . . . . . . . . . . . . 1 . . . . 1 . . . Emergency Access Points 1 | . . . . . . . . 1 . . . . . . . . . . . . . Terminal Index 1 | . . . 1 . . . . . . . . . . . . . . . . . . Fabricator Index 1 | . . . . . . . . . . . . . . . . . . 1 . . . Alert Level 1 | . . . . . . . . . 1 . . . . . . . . . . . . Unreport Threat 8 | . . 1 2 . . . 1 . 2 . . . 1 . . . . 1 . . . Locate Traps 8 | . 1 . 2 . . . 1 . . . 1 . 2 . . . . 1 . . . Reprogram Traps 1 | . 1 . . . . . . . . . . . . . . . . . . . . Recall Investigation 1 | . . . . . . . . . . . . . . . . . . 1 . . . Hauler Manifests 5 | . 2 . 1 . . . 1 . 1 . . . . . . . . . . . . Registered Components 1 | . . . . . . . . . 1 . . . . . . . . . . . . Registered Prototypes 1 | . . . . . . . 1 . . . . . . . . . . . . . . Zone Layout 4 | . 2 1 . . . . . . 1 . . . . . . . . . . . . Security Stations 1 | . . . . . . . . 1 . . . . . . . . . . . . . Proto ID Catalog 1 | . . . . . 1 . . . . . . . . . . . . . . . . Fabricator Hacks 1 | . . . . . . . . . . . . . . . . . . 1 . . . Load Schematic 1 | . . . . . . . . . . . . . . . . . . 1 . . . Repair Station Hacks 20 | . 1 . 2 . . . 2 . 4 . 4 . 6 . . . . 1 . . . Scan Component 11 | . 1 . 1 . . . 1 . 2 . 2 . 3 . . . . 1 . . . Repair 9 | . . . 1 . . . 1 . 2 . 2 . 3 . . . . . . . . Recycling Unit Hacks 6 | . 1 . . . . . . . 2 . 1 . 1 . . . . 1 . . . Retrieve Components 6 | . 1 . . . . . . . 2 . 1 . 1 . . . . 1 . . . Scanalyzer 28 | . . . 9 . . . 5 . 4 . 1 . 7 . . . . 2 . . . Insert Component 5 | . . . 3 . . . 1 . . . . . 1 . . . . . . . . Analyze 4 | . . . 3 . . . 1 . . . . . . . . . . . . . . Retrieve Study 19 | . . . 3 . . . 3 . 4 . 1 . 6 . . . . 2 . . . Garrison Access Hacks 4 | . . . . . . . 1 . 1 . 1 . 1 . . . . . . . . Unlock Access 3 | . . . . . . . 1 . 1 . 1 . . . . . . . . . . Seal Access 1 | . . . . . . . . . . . . . 1 . . . . . . . . Unauthorized Hacks 42 | . 6 . 10 . . . 10 . 10 . 3 . 1 . . . . 2 . . . Terminals 30 | . 3 . 7 . . . 9 . 7 . 2 . 1 . . . . 1 . . . Assimilate 3 | . . . . . . . 2 . . . 1 . . . . . . . . . . Botnet 10 | . 2 . 1 . . . 2 . 2 . 1 . 1 . . . . 1 . . . Skim 17 | . 1 . 6 . . . 5 . 5 . . . . . . . . . . . . Fabricators . | . . . . . . . . . . . . . . . . . . . . . . Repair Stations 1 | . . . 1 . . . . . . . . . . . . . . . . . . Patch 1 | . . . 1 . . . . . . . . . . . . . . . . . . Recycling Units 9 | . 3 . 2 . . . 1 . 2 . 1 . . . . . . . . . . Monitor 3 | . 1 . . . . . . . 1 . 1 . . . . . . . . . . Reject 1 | . . . . . . . . . 1 . . . . . . . . . . . . Mask 1 | . . . . . . . 1 . . . . . . . . . . . . . . Tunnel 4 | . 2 . 2 . . . . . . . . . . . . . . . . . . Scanalyzers . | . . . . . . . . . . . . . . . . . . . . . . Garrison Access 2 | . . . . . . . . . 1 . . . . . . . . 1 . . . Reprogram 2 | . . . . . . . . . 1 . . . . . . . . 1 . . . Data Cores Recovered 4 | . . . 2 . . . . . . . . . 1 . . . . 1 . . . Used 2 | . . . 1 . . . . . . . . . . . . . . 1 . . . Hacking Detections 88 | . 6 1 12 . . . 11 3 10 2 13 2 15 . . . . 13 . . . Full Trace Events 10 | . 1 . 1 . . . 3 . . 1 1 1 1 . . . . 1 . . . Feedback Events 1 | . . . 1 . . . . . . . . . . . . . . . . . . Corruption 1 | . . . 1 . . . . . . . . . . . . . . . . . . Feedback Blocked . | . . . . . . . . . . . . . . . . . . . . . . Robot Schematics Acquired 6 | . . . . . . . . . . . . . . . . 6 . . . . . Robots Built . | . . . . . . . . . . . . . . . . . . . . . . Authchips . | . . . . . . . . . . . . . . . . . . . . . . Time . | . . . . . . . . . . . . . . . . . . . . . . Total Robot Build Rating . | . . . . . . . . . . . . . . . . . . . . . . Part Schematics Acquired 11 | . . . 2 . . . . . . . . . . . . 8 . 1 . . . Parts Built . | . . . . . . . . . . . . . . . . . . . . . . Authchips . | . . . . . . . . . . . . . . . . . . . . . . Time . | . . . . . . . . . . . . . . . . . . . . . . Total Part Build Rating . | . . . . . . . . . . . . . . . . . . . . . . Part Studies Acquired 17 | . . . 3 . . . 3 . 3 . 1 . 5 . . . . 2 . . . Parts Repaired 9 | . . . 1 . . . 1 . 2 . 2 . 3 . . . . . . . . Time 347 | . . . 16 . . . 26 . 88 . 88 . 129 . . . . . . . . Parts Recycled . | . . . . . . . . . . . . . . . . . . . . . . Recycled Matter . | . . . . . . . . . . . . . . . . . . . . . . Retrieved Matter . | . . . . . . . . . . . . . . . . . . . . . . Retrieved Components 30 | . 10 . . . . . . . 18 . . . 2 . . . . . . . . Parts Scanalyzed 5 | . . . 3 . . . 1 . . . . . 1 . . . . . . . . Part Schematics Acquired 2 | . . . 2 . . . . . . . . . . . . . . . . . . Parts Damaged . | . . . . . . . . . . . . . . . . . . . . . . Bothacking | -11 -10 -10 -9 -9 -9 -8 -8 -8 -8 -8 -7 -7 -6 -6 -6 -6 -5 -5 -5 -5 -5 ------------ Run | Yrd Mat Min Mat Min Exi Min Mat Gar Mat Gar Fac Gar Fac Low Low Dat Pro Fac Upp Upp War Used RIF Installer . | . . . . . . . . . . . . . . . . . . . . . . Robots Hacked 4 | . . . . . 4 . . . . . . . . . . . . . . . . Non-combat 3 | . . . . . 3 . . . . . . . . . . . . . . . . Combat 1 | . . . . . 1 . . . . . . . . . . . . . . . . Robot Hacks Applied 4 | . . . . . 4 . . . . . . . . . . . . . . . . parse_system 4 | . . . . . 4 . . . . . . . . . . . . . . . . Relay Couplers Released 51 | . . . . . . . . 21 . 18 . 12 . . . . . . . . . Machine Destruction 51 | . . . . . . . . 21 . 18 . 12 . . . . . . . . . Fabnet Peak Effective % . | . . . . . . . . . . . . . . . . . . . . . . Robots Rewired 5 | . . . . . . . . . . . . . . . . . 2 . 3 . . Allies Hacked 1 | . . . . . . . . . . . . . . . . . . 1 . . . Hacks Repelled . | . . . . . . . . . . . . . . . . . . . . . . Allies | -11 -10 -10 -9 -9 -9 -8 -8 -8 -8 -8 -7 -7 -6 -6 -6 -6 -5 -5 -5 -5 -5 -------- Run | Yrd Mat Min Mat Min Exi Min Mat Gar Mat Gar Fac Gar Fac Low Low Dat Pro Fac Upp Upp War Total Allies 16 | . . 3 . 3 . . 1 . 2 . . 1 . . . . 3 . 3 . . Largest Group 4 | . . 3 1 3 3 3 4 . 2 . . 1 . . . . 3 3 2 . . Highest-Rated Group 175 | . . 76 31 40 40 40 50 . 30 . . 31 . . . . 175 175 78 . . Highest-Rated Ally 96 | . . 31 31 16 16 16 16 . 15 . . 31 . . . . 96 96 49 . . Initial Warlord ECA Mod 30 | . . . . . . . . . 13 13 22 22 30 30 30 30 29 29 29 29 29 Total Orders 30 | . . . . . . 2 10 . . . . . . . . . 2 1 8 7 . STAY 7 | . . . . . . 1 6 . . . . . . . . . . . . . . FOLLOW 5 | . . . . . . 1 4 . . . . . . . . . . . . . . EXPLORE 14 | . . . . . . . . . . . . . . . . . 2 1 7 4 . RETURN 4 | . . . . . . . . . . . . . . . . . . . 1 3 . Ally Attacks 129 | . . 19 5 . . 26 27 . 5 . . 3 . . . . 8 24 12 . . Total Damage 2885 | . . 337 60 . . 250 269 . 102 . . 62 . . . . 323 1065 417 . . Kills 18 | . . 4 1 . . 3 2 . . . . . . . . . 4 4 . . . Allies Corrupted . | . . . . . . . . . . . . . . . . . . . . . . Allies Melted . | . . . . . . . . . . . . . . . . . . . . . . Intel | -11 -10 -10 -9 -9 -9 -8 -8 -8 -8 -8 -7 -7 -6 -6 -6 -6 -5 -5 -5 -5 -5 ------- Run | Yrd Mat Min Mat Min Exi Min Mat Gar Mat Gar Fac Gar Fac Low Low Dat Pro Fac Upp Upp War Active Infowar (turns) 8730 | 46 283 . . . . . . . 466 . 1169 . 1591 789 565 91 576 866 1256 768 264 Optics 882 | . . . . . . . . . . . . . . . 215 91 576 . . . . Sensors 2 | . . . . . . . . . . . . . . . . . . 2 . . . Terrain 7249 | . . . . . . . . . 198 . 1169 . 1591 789 350 . . 864 1256 768 264 Seismic 329 | 46 283 . . . . . . . . . . . . . . . . . . . . Machine Analysis 268 | . . . . . . . . . 268 . . . . . . . . . . . . Robot Analysis Total 2 | . 2 . . . . . . . . . . . . . . . . . . . . Derelict Logs Recovered 6 | . . . . 1 . . . . . . . . . 1 1 . . . 1 2 . Drone Launches 17 | . . . . . . . . . . . . . . . . . 4 1 8 4 . Drone Recoveries 14 | . . . . . . . . . . . . . . . . . 2 1 8 3 . Exploration | -11 -10 -10 -9 -9 -9 -8 -8 -8 -8 -8 -7 -7 -6 -6 -6 -6 -5 -5 -5 -5 -5 ------------- Run | Yrd Mat Min Mat Min Exi Min Mat Gar Mat Gar Fac Gar Fac Low Low Dat Pro Fac Upp Upp War Turns Passed 27523 | 163 1513 490 3142 975 862 973 1827 2144 1180 2018 1489 1458 2259 789 937 91 1065 1588 1337 959 264 Spaces Moved 16285 | 82 843 167 1527 520 514 473 845 990 717 1238 1189 1030 1465 621 746 94 799 1299 649 366 111 Core 4 | 4 . . . . . . . . . . . . . . . . . . . . . Treads 5615 | . 607 167 1527 520 514 473 845 962 . . . . . . . . . . . . . Legs 369 | 78 236 . . . . . . . . . . . . . . . . . . . 55 Wheels 10297 | . . . . . . . . 28 717 1238 1189 1030 1465 621 746 94 799 1299 649 366 56 Hover . | . . . . . . . . . . . . . . . . . . . . . . Flight . | . . . . . . . . . . . . . . . . . . . . . . Fastest Speed 50 | 50 120 160 160 160 160 200 160 115 115 101 98 98 98 105 105 90 96 87 87 200 190 Average Speed 128 | 116 148 160 160 178 164 200 162 160 115 104 98 98 104 105 105 91 107 90 126 208 230 Slowest Speed 260 | 120 160 160 160 200 200 200 216 162 115 130 101 98 125 105 105 105 145 111 200 230 260 Overloaded Moves . | . . . . . . . . . . . . . . . . . . . . . . Propulsion Burnouts . | . . . . . . . . . . . . . . . . . . . . . . Robots Hopped . | . . . . . . . . . . . . . . . . . . . . . . Potential Cave-ins 8 | . . 2 . . . . . . . . . . 6 . . . . . . . . Cave-ins Triggered . | . . . . . . . . . . . . . . . . . . . . . . Exploration Rate (%) 66 | 4 98 21 95 95 72 88 59 93 59 93 44 78 34 85 73 74 83 23 90 82 18 Regions Visited 21 Branch Regions 11 Pre-discovered Areas 12 | . 2 . 4 . 1 . 2 . . . . . . 2 . 1 . . . . . Known Exits Taken 8 | . . . . . . 1 1 . 1 . 1 . 1 1 . . 1 1 . . . Unknown Exits Taken 10 | 1 1 1 1 1 1 . . . . . . . . . 1 1 . . 1 1 . Scrap Searched 17 | . . . . 1 . 1 . . . . . . . 3 3 . 2 . 4 3 . Spaces Dug 153 | . 3 32 19 . . . 4 . 5 17 13 6 30 2 2 . . 17 2 1 . Terrain Destroyed 454 | . 4 32 40 3 . . 6 40 8 24 16 52 58 22 25 . 15 19 83 7 . Melee 68 | . . . . . . . . . 5 17 13 6 20 . . . . 6 1 . . Projectile 139 | . 4 . 13 . . . 6 4 3 7 . 6 37 22 11 . 1 13 5 7 . AOE 246 | . . 32 27 3 . . . 36 . . 3 40 . . 14 . 14 . 77 . . Terrain Rammed 1 | . . . . . . . . . . . . . 1 . . . . . . . . Walls Destroyed 1 | . . . . . . . . . . . . . 1 . . . . . . . . Machines Disabled . | . . . . . . . . . . . . . . . . . . . . . . Actions | -11 -10 -10 -9 -9 -9 -8 -8 -8 -8 -8 -7 -7 -6 -6 -6 -6 -5 -5 -5 -5 -5 --------- Run | Yrd Mat Min Mat Min Exi Min Mat Gar Mat Gar Fac Gar Fac Low Low Dat Pro Fac Upp Upp War Total 20880 | 120 989 328 1991 549 535 490 1100 1292 1005 1732 1443 1268 2022 710 852 99 954 1664 1077 543 117 Wait 2522 | 14 31 126 230 11 3 9 79 132 221 231 132 57 369 60 63 . 61 253 289 151 . Move 16264 | 81 842 166 1526 520 513 472 844 989 716 1235 1189 1029 1464 620 745 93 798 1298 648 365 111 Hop . | . . . . . . . . . . . . . . . . . . . . . . Pick Up 159 | 5 17 . 19 1 4 . 7 3 9 12 13 8 10 2 4 . 4 23 14 4 . Fast Attach 106 | 7 1 . 16 . 3 1 11 3 3 7 10 3 19 . 4 3 4 5 1 2 3 Attach 77 | . 2 . 5 . 1 . 4 4 2 8 3 3 7 . 5 . 13 7 10 2 1 Detach 39 | . . . 3 . . . 3 1 2 4 5 1 8 . 2 . 4 6 . . . Swap 281 | . 15 4 39 4 . . 20 24 11 29 31 24 32 1 2 . 5 14 20 5 1 Drop 198 | . 16 . 43 1 7 1 24 9 8 10 21 9 17 2 2 3 3 13 6 2 1 Fire 874 | 13 57 32 107 8 . 5 98 105 27 88 23 75 68 25 25 . 21 24 61 12 . Melee 111 | . . . . . 4 . . . 5 30 16 13 27 . . . 1 12 3 . . Ram 3 | . . . . . . . . . 1 . . . 1 . . . . 1 . . . Kick 2 | . 2 . . . . . . . . . . . . . . . . . . . . Crush 25 | . 6 . 3 4 . 2 10 . . . . . . . . . . . . . . Escape Stasis 88 | . . . . . . . . . . 64 . 16 . . . . . 8 . . . Rewire 68 | . . . . . . . . . . 1 . 2 . . . . 40 . 25 . . Trap 3 | . . . . . . . . . . 1 . 2 . . . . . . . . . Miscellaneous 60 | . . . . . . . . 22 . 12 . 26 . . . . . . . . . Route ------- -11/Scrapyard -10/Materials (discovered 5 exits: *Mat x3 / *Min x2) -10/Mines -9/Materials (discovered 4 exits: *Mat x3 / *Min) -9/Mines (discovered 4 exits: *Mat x2 / *Exi / [*Zio]) -9/Exiles (discovered 2 exits: [*Min x2]) -8/Mines -8/Materials (discovered 6 exits: *Fac x3 / Sto x2 / Gar) -8/Garrison (discovered 3 exits: *Mat x3) -8/Materials (discovered 5 exits: *Fac x3 / *Sto / Gar) -8/Garrison (discovered 3 exits: *Fac x3) -7/Factory (discovered 7 exits: *Fac x4 / Low x2 / Gar) -7/Garrison (discovered 2 exits: *Fac x2) -6/Factory (discovered 4 exits: *Fac x2 / *Low x2) -6/Lower Caves -6/Lower Caves (discovered 2 exits: *Fac / *Dat) -6/Data Miner -5/Proximity Caves -5/Factory (discovered 3 exits: [*Fac] / *Upp x2) -5/Upper Caves -5/Upper Caves (discovered 2 exits: [*Fac] / [*War]) -5/Warlord History --------- Turn | Location | Event 5 | -11/Scrapyard | Discovered new exit (range 15) 164 | -11/Scrapyard | Entered Materials 164 | -10/Materials | Discovered new exit (range 8) 165 | -10/Materials | Met a group of wandering Federalists 318 | -10/Materials | Build established: Mutant 365 | -10/Materials | Discovered new exit (range 10) 666 | -10/Materials | Discovered new exit (range 14) 1111 | -10/Materials | Discovered new exit (range 15) 1264 | -10/Materials | Discovered new exit (range 15) 1637 | -10/Materials | Central database locked down 1677 | -10/Materials | Entered Mines 1747 | -10/Mines | Discovered new exit (range 14) 1956 | -10/Mines | Core integrity fell below 50% 2005 | -10/Mines | Met a Derelict testing a Signal Generator 2018 | -10/Mines | Assembled infested the area 2167 | -10/Mines | Entered Materials 2167 | -9/Materials | Accompanied by 1 ally 2167 | -9/Materials | Evolved 2 slots: Propulsion x1, Weapon x1 2484 | -9/Materials | Build established: Gunner 2487 | -9/Materials | Repaired Spread Laser 2823 | -9/Materials | Discovered new exit (range 14) 3093 | -9/Materials | Discovered new exit (range 14) 3663 | -9/Materials | Core integrity fell below 50% 3713 | -9/Materials | Discovered new exit (range 14) 3994 | -9/Materials | Discovered new exit (range 8) 4467 | -9/Materials | Central database locked down 4549 | -9/Materials | Learned 4 Recycling zone layouts 4621 | -9/Materials | Learned location of Recycling (-8) 4683 | -9/Materials | Learned location of Mines (-8) 4736 | -9/Materials | Loaded intel: 14 trap records 4812 | -9/Materials | Learned location of 1 exit from Storage 5134 | -9/Materials | Identified exit to Materials 5187 | -9/Materials | Learned 8 Materials zone layouts 5309 | -9/Materials | Entered Mines 5358 | -9/Mines | Discovered exit to Materials (range 6) 5436 | -9/Mines | A Derelict revealed a hidden shortcut to a safe place 5632 | -9/Mines | Deemed a non-threat by the Exiles lab entrance 5633 | -9/Mines | Discovered new exit (range 5) 5657 | -9/Mines | Discovered exit to Materials (range 12) 5863 | -9/Mines | Assisted by bots powering up and referring to "LRC-V3" 5865 | -9/Mines | Learned Materials interactive machine intel 5953 | -9/Mines | Met a Derelict shopkeep closing up shop 6093 | -9/Mines | Build established: Tank 6284 | -9/Mines | Entered Exiles 6284 | -9/Exiles | Accompanied by 3 allies 6334 | -9/Exiles | Met 8R-AWN 6371 | -9/Exiles | Met EX-HEX 6461 | -9/Exiles | Met EX-DEC 6505 | -9/Exiles | Learned location of Zion (-7) 6561 | -9/Exiles | Met EX-BIN 6635 | -9/Exiles | Build established: Mutant 6672 | -9/Exiles | Aligned with FarCom system 6673 | -9/Exiles | Given EX-Vault access code 6712 | -9/Exiles | Opened EX-Vault 6721 | -9/Exiles | Found Trap Reconfigurator 6754 | -9/Exiles | Warned to stay clear of 0b10 Research branches 6901 | -9/Exiles | Discovered new exit (range 14) 7115 | -9/Exiles | Discovered new exit (range 14) 7146 | -9/Exiles | Left Exiles lab with Trap Reconfigurator 7146 | -9/Exiles | Entered Mines 7146 | -8/Mines | Accompanied by 3 allies 7454 | -8/Mines | Build established: Skirmisher 7797 | -8/Mines | Discovered exit to Materials (range 10) 8119 | -8/Mines | Entered Materials 8119 | -8/Materials | Accompanied by 3 allies 8119 | -8/Materials | Evolved 2 slots: Propulsion x1, Utility x1 8120 | -8/Materials | Identified exit to Factory 8120 | -8/Materials | Identified exit to Storage 8121 | -8/Materials | Loaded intel: 19 interactive machine locations 8169 | -8/Materials | Repaired Lgt. Treads+ 8640 | -8/Materials | Build established: Tank 9187 | -8/Materials | Build established: Scavenger-Tank 9360 | -8/Materials | Discovered exit to Factory (range 5) 9537 | -8/Materials | Learned Storage security intel 9565 | -8/Materials | Learned Storage trap positions 9589 | -8/Materials | Learned Factory garrison access intel 9640 | -8/Materials | Learned location of 1 exit from Lower Caves 9748 | -8/Materials | Central database locked down 9945 | -8/Materials | Identified exit to Garrison 9946 | -8/Materials | Entered Garrison 10020 | -8/Garrison | Triggered checkpoint 10033 | -8/Garrison | Garrison Relay disabled 10047 | -8/Garrison | Build established: Scientist-Tank 10172 | -8/Garrison | Triggered checkpoint 10177 | -8/Garrison | Triggered checkpoint 10222 | -8/Garrison | Destroyed 13 combat bots 10229 | -8/Garrison | Lost 3 parts (1p1n1w) 10296 | -8/Garrison | Triggered checkpoint 10433 | -8/Garrison | Discovered new exit (range 12) 10804 | -8/Garrison | Garrison Relay disabled 10903 | -8/Garrison | Build established: Scavenger-Tank 10930 | -8/Garrison | Triggered checkpoint 11062 | -8/Garrison | Triggered checkpoint 11143 | -8/Garrison | Garrison Relay disabled 11159 | -8/Garrison | Learned Materials security intel 11189 | -8/Garrison | Discovered new exit (range 10) 11274 | -8/Garrison | Phase Generator disabled 11786 | -8/Garrison | Triggered checkpoint 11903 | -8/Garrison | Discovered new exit (range 7) 11968 | -8/Garrison | Garrison Relay disabled 11980 | -8/Garrison | Garrison Relay disabled 12090 | -8/Garrison | Entered Materials 12420 | -8/Materials | Build established: Scavenger-Skirmisher 12852 | -8/Materials | Repaired Gauss Rifle+ 12896 | -8/Materials | Learned location of 1 exit from Storage 12897 | -8/Materials | Repaired Gauss Rifle+ 12909 | -8/Materials | Learned location of 2 exits from Factory 12910 | -8/Materials | Learned Storage stockpile data 12911 | -8/Materials | Learned Storage emergency access door positions 12913 | -8/Materials | Learned Factory trap positions 12924 | -8/Materials | Learned 4 Recycling zone layouts 12946 | -8/Materials | Learned Factory emergency access door positions 13146 | -8/Materials | Garrison activated, responded to threat 13193 | -8/Materials | Destroyed 7 combat bots 13196 | -8/Materials | Identified exit to Garrison 13270 | -8/Materials | Entered Garrison 13320 | -8/Garrison | Triggered checkpoint 13351 | -8/Garrison | Garrison Relay disabled 13562 | -8/Garrison | Triggered checkpoint 13611 | -8/Garrison | Triggered checkpoint 13620 | -8/Garrison | Triggered checkpoint 13817 | -8/Garrison | Garrison Relay disabled 13847 | -8/Garrison | Triggered checkpoint 13860 | -8/Garrison | Core integrity fell below 50% 13889 | -8/Garrison | Discovered exit to Factory (range 15) 13908 | -8/Garrison | Lost 3 parts (1u2w) 14070 | -8/Garrison | Build established: Mutant 14181 | -8/Garrison | Discovered exit to Factory (range 11) 14208 | -8/Garrison | Garrison Relay disabled 14251 | -8/Garrison | Phase Generator disabled 14342 | -8/Garrison | Garrison Relay disabled 14434 | -8/Garrison | Triggered checkpoint 14516 | -8/Garrison | Discovered exit to Factory (range 4) 14680 | -8/Garrison | Triggered checkpoint 14710 | -8/Garrison | Garrison Relay disabled 14728 | -8/Garrison | Attempted to access garrison exit controls, blocked by remote lockdown 14985 | -8/Garrison | Build established: Skirmisher 15189 | -8/Garrison | Attempted to access garrison exit controls, blocked by remote lockdown 15288 | -8/Garrison | Entered Factory 15288 | -7/Factory | Evolved 2 slots: Utility x2 15289 | -7/Factory | Identified exit to Lower Caves 15290 | -7/Factory | Identified exit to Factory 15291 | -7/Factory | Loaded intel: 123 trap records 15293 | -7/Factory | Loaded intel: 4 garrison access locations 15399 | -7/Factory | Repaired Gauss Rifle+ 15511 | -7/Factory | Repaired Arm. Huge Wheel+ 16046 | -7/Factory | Discovered exit to Factory (range 15) 16419 | -7/Factory | Build established: Scientist-Assassin 16488 | -7/Factory | First assault squad dispatched 16724 | -7/Factory | Discovered exit to Factory (range 12) 16777 | -7/Factory | Identified exit to Garrison 16777 | -7/Factory | Entered Garrison 16828 | -7/Garrison | Phase Generator disabled 17047 | -7/Garrison | Garrison Relay disabled 17343 | -7/Garrison | Triggered checkpoint 17441 | -7/Garrison | Build established: Tank 17441 | -7/Garrison | Rescued a captive Derelict 17446 | -7/Garrison | Rescued a captive Derelict 17781 | -7/Garrison | Build established: Gunner 17828 | -7/Garrison | Garrison Relay disabled 17891 | -7/Garrison | Discovered exit to Factory (range 9) 18003 | -7/Garrison | Triggered checkpoint 18034 | -7/Garrison | Destroyed 7 combat bots 18130 | -7/Garrison | Discovered exit to Factory (range 11) 18202 | -7/Garrison | Garrison Relay disabled 18235 | -7/Garrison | Entered Factory 18235 | -6/Factory | Evolved 2 slots: Utility x2 18436 | -6/Factory | Discovered new exit (range 11) 18524 | -6/Factory | Identified exit to Lower Caves 18585 | -6/Factory | First assault squad dispatched 18743 | -6/Factory | Discovered new exit (range 16) 19506 | -6/Factory | Lost 3 parts (1p2n) 19534 | -6/Factory | Found Hvy. Insulated Plating 19686 | -6/Factory | Discovered new exit (range 5) 19718 | -6/Factory | Identified exit to Factory 20063 | -6/Factory | Repaired Broken Hvy. Plasma Cannon+? 20373 | -6/Factory | Repaired Arm. Huge Wheel+ 20425 | -6/Factory | Repaired Coil Gun+ 20494 | -6/Factory | Entered Lower Caves 20495 | -6/Lower Caves | Identified exit to Lower Caves 20500 | -6/Lower Caves | Met a Warlord Commander 20501 | -6/Lower Caves | Learned location of Warlord (-5) 20502 | -6/Lower Caves | Warlord Commander delivered Encrypted Comm Array 20505 | -6/Lower Caves | Found Encrypted Comm Array 20564 | -6/Lower Caves | Build established: Skirmisher 20817 | -6/Lower Caves | Learned location of Extension (-4) 20856 | -6/Lower Caves | Attracted the attention of an 0b10 checkpoint 21283 | -6/Lower Caves | Entered another Lower Caves area 21321 | -6/Lower Caves | Attracted the attention of an 0b10 outpost 21340 | -6/Lower Caves | Discovered exit to Factory (range 20) 21395 | -6/Lower Caves | Encountered a Warlord checkpoint 21397 | -6/Lower Caves | Destroyed 8 combat bots 21580 | -6/Lower Caves | Attracted the attention of an 0b10 checkpoint 21743 | -6/Lower Caves | Spotted B-75 Beast 22010 | -6/Lower Caves | Learned Factory terminal intel 22086 | -6/Lower Caves | Discovered new exit (range 18) 22220 | -6/Lower Caves | Entered Data Miner 22222 | -6/Data Miner | Discovered new exit (range 6) 22234 | -6/Data Miner | Met Data Miner 22256 | -6/Data Miner | Learned location of Section 7 (-2) 22256 | -6/Data Miner | Acquired the access code to Warlord's prototype stash 22272 | -6/Data Miner | Received God Mode back door access code from Data Miner 22311 | -6/Data Miner | Entered Proximity Caves 22336 | -5/Proximity Caves | Attracted the attention of an 0b10 checkpoint 22336 | -5/Proximity Caves | Core integrity fell below 50% 22596 | -5/Proximity Caves | Build established: Gunner 22824 | -5/Proximity Caves | Attracted the attention of an 0b10 outpost 22887 | -5/Proximity Caves | Escorted by Enhanced Grunt 22918 | -5/Proximity Caves | Lost 11 parts (1p2n3u5w) 23347 | -5/Proximity Caves | Discovered exit to Factory (range 5) 23376 | -5/Proximity Caves | Entered Factory 23376 | -5/Factory | Accompanied by 3 allies 23376 | -5/Factory | Evolved 2 slots: Propulsion x1, Utility x1 23377 | -5/Factory | Loaded intel: 26 terminal locations 23533 | -5/Factory | Build established: Scavenger-Gunner 23564 | -5/Factory | Discovered new exit (range 12) 23687 | -5/Factory | Identified exit to Upper Caves 23903 | -5/Factory | Build established: Scavenger-Mutant 23953 | -5/Factory | Garrison activated, responded to threat 24022 | -5/Factory | Lost 3 parts (1p1n1w) 24033 | -5/Factory | Lost 3 allies 24367 | -5/Factory | Central database locked down 24403 | -5/Factory | Discovered new exit (range 7) 24648 | -5/Factory | Build established: Scavenger-Skirmisher 24964 | -5/Factory | Entered Upper Caves 24972 | -5/Upper Caves | Learned Factory terminal intel 25014 | -5/Upper Caves | Attracted the attention of an 0b10 outpost 25062 | -5/Upper Caves | Lost 4 parts (1p2n1u) 25189 | -5/Upper Caves | Lost 3 parts (1n1u1w) 25440 | -5/Upper Caves | Spotted B-75 Beast 25443 | -5/Upper Caves | Build established: Scavenger-Gunner 25769 | -5/Upper Caves | Lost 3 parts (2n1w) 25791 | -5/Upper Caves | Attracted the attention of an 0b10 checkpoint 26083 | -5/Upper Caves | Discovered new exit (range 15) 26301 | -5/Upper Caves | Entered another Upper Caves area 26381 | -5/Upper Caves | Learned location of 1 exit from Proximity Caves 26382 | -5/Upper Caves | Discovered new exit (range 19) 26453 | -5/Upper Caves | Learned Factory stockpile data 26981 | -5/Upper Caves | Discovered new exit (range 57) 27260 | -5/Upper Caves | Entered Warlord 27336 | -5/Warlord | System corruption cleaned by Quarantine Array 27508 | -5/Warlord | Attacked by Warlord forces 27508 | -5/Warlord | Spotted T8-LTU(B) 27508 | -5/Warlord | Spotted 97-OXH(B) 27524 | -5/Warlord | Self-destructed Last Messages --------------- 27382_ Complication: Imp. Medium Armor Plating rejected. 27382_ Complication: Adv. Plasma Cannon+ rejected. 27389_ System corrupted: FCS attempts to trigger KE Penetrator. 27389_ System corrupted: KE Penetrator misfires. 27389_ System Quarantine Field Array disabled. 27419_ HTBMUYVHVKRZZG1AUS=P= 27424_ Acquired Med. Treads. 27428_ Acquired Imp. Medium Armor Plating. 27431_ Acquired Adv. Plasma Cannon+. 27446_ System corrupted: Matter fused (-8). 27488_ System corrupted: Matter fused (-9). 27507_ System corrupted: FCS attempts to trigger Hvy. Plasma Cannon+. 27507_ System corrupted: Hvy. Plasma Cannon+ misfires. 27508_ ANNOUNCEMENT: Internal threat detected, destroy unregistered bots on sight. 27513_ Critical hit (Destroy). 27514_ System Quarantine Field Array disabled. 27516_ Critical hit (Destroy). 27522_ Imp. Weapon Cycler destroyed. 27522_ Med. Treads destroyed. Map ----- +----------------------------------------------------+ | ?????????????????????????????????????????????????? | | ???????????????????????????????????????????????#?? | | ?????????????????????????????????????#????#??????? | | ??????????????????????????????#??#??## ????##??? | | ????????????????????? ?? ???##?##?### ? ?###### | | ?????????????? ??# ? ? ??###?###?###? ? ##?### | | ??????????? ?? ?#????? #?############ ? ###### | | ?????????#??###### ######?######## ##### | | ????????##????# ?#?################## ##### | | ??????????###?# ##########?########## ##### | | ???#?#????##?# ##################### | | ????##?######## #############?######## ### | | ??##????#??#?## ####""################# | | ?????#???#?#?### ####""################### | | ????#?????????## ####""################### | | ???#?#?#?""?#?## ####""#################### | | ????#?##"X?"#?## ####""##################### | | ? #??###"X?"#### #######""###################### | | ?#????#"? ?# # "" "################## | | ???##?#?? ## # "" """""""""""####### | | ?########+## BB # "" """"""""""""####### | | ??? BB +^ ### ## | | ??##### ;% ^ ^ ^+ | | ? ##???# ; ^ + | | ?????### ; #### | | ? ? ?? # # # @"" """""""" """##### | | ? ?"??# # #% "" """"""""""""##### | | ? ??? ? # %; "" "################ | | ? ??" # ?#### #######""#################### | | ??? ? ?? ? #######""###############?### | | ? ?""" ? #######""################## # | | ? ???" # ? #######""################## ## | | ??"""?? """" #######""################# ## | | ? ? # """" ###?##""################# ## | | ??#??#?# """" ############?#########?## ### | | ????#??# ???""" ######################### ### | | ???? ????? ?? ###?##################### ### | | ?????? ??? ?###?################### ## | | ???? ? ??? ##?# #?? ################ # | | ??????? ???# ## """ #####?########## ##? | | ??????????#??#?#? ## """ #?########## # ####? | | ?????????? ?? ?# #?? ??" #?###?##### #### | | ????????? ?????#? ?#? """ ##???###### ? #### | | ?????????? ???# ? ??#???????????????#?????? #??? | | ????????????????????????????????????????### ???#? | | ?????????????????????????????????????????? ?#???? | | ????????????????????#?????????????????????#??###?# | | ???????????????????????????????????????????###??#? | | ???????????????????????????????????????????#?????# | | ?????????????????????????????????????????????#??## | +----------------------------------------------------+ Best States ------------- Heat Dissipation 83 Energy Generation 21 Energy Capacity 700 Matter Stores 500 Matter Capacity 500 Sight Range 22 Robot Scan Range 16 Terrain Scan Range 20 Terrain Scan Density 210 Armor Coverage 825 Resistance: KI 30 Resistance: TH 20 Resistance: EM 30 Power Shielding 33 Weapon Cycling 20 Phase Shifting 15 Evasion (%) 55 Targeting Accuracy 6 Target Analysis 6 Core Analysis 6 Recoil Reduction 4 Kinecelleration 40 Offensive Hacking 10 Defensive Hacking 10 Item Schematics ----------------- Hacking Suite | -9/Materials | Scanalyzed Seismic Detector | -9/Materials | Scanalyzed Combat Drone Bay | -6/Data Miner | Free Lgt. Regenerative Plating | -6/Data Miner | Free Cld. Nuclear Pulse Thruster | -6/Data Miner | Free Imp. Matter Compressor | -6/Data Miner | Free Kinetic Spear | -6/Data Miner | Free Hvy. Siege Treads | -6/Data Miner | Free Imp. Phase Shifter | -6/Data Miner | Free Hardcell Cannon | -6/Data Miner | Free Hcp. Storage Unit | -5/Factory | Hacked Robot Schematics ------------------ B-48 Gladiator | -6/Data Miner | Free H-66 Slayer | -6/Data Miner | Free R-10 Processor | -6/Data Miner | Free B-60 Warrior | -6/Data Miner | Free X-72 Disruptor | -6/Data Miner | Free A-27 Freighter | -6/Data Miner | Free Fabricated ------------ Nothing Repaired ---------- Spread Laser | 65% | -9/Materials Lgt. Treads | 64% | -8/Materials Gauss Rifle | 15% | -8/Materials Gauss Rifle | 29% | -8/Materials Gauss Rifle | 5% | -7/Factory Arm. Huge Wheel | 26% | -7/Factory Hvy. Plasma Cannon | 57% | -6/Factory | Broken Arm. Huge Wheel | 4% | -6/Factory Coil Gun | 12% | -6/Factory Studied --------- Lgt. Treads | -9/Materials | Hacked Imp. Treads | -9/Materials | Hacked Mni. Grenade Launcher | -9/Materials | Hacked Autogun | -8/Materials | Hacked Gauss Rifle | -8/Materials | Hacked Arm. Treads | -8/Materials | Hacked Hvy. Mace | -8/Materials | Hacked Arm. Wheel | -8/Materials | Hacked Plasma Cutter | -8/Materials | Hacked Arm. Huge Wheel | -7/Factory | Hacked Coil Gun | -6/Factory | Hacked Power Sword | -6/Factory | Hacked Imp. Grenade Launcher | -6/Factory | Hacked Gatling Laser | -6/Factory | Hacked Hvy. Plasma Cannon | -6/Factory | Hacked Com. Wheel | -5/Factory | Hacked Adv. Plasma Cannon | -5/Factory | Hacked Alien Tech Used ----------------- None Achievements -------------- None Challenges ------------ None Game ------ Seed PointyActiveScanner Manual? 0 Play Time 05:57:11 Cumulative 241.8 hours Start 2025.12.23 @ 01:12:16 End 2025.12.26 @ 20:37:04 Sessions 17 Manual Loads 0 Difficulty Rogue Special Mode None Game No. 77 Rogue 77 Adventurer 0 Explorer 0 Win Type - Total 1 Types 1/0/0/0/0/0/0/0/0/0 Lore% 54 Gallery% 52 Achievement% 41 Wizard Run 0 Options --------- Layout 0 ASCII 1 Keyboard 1 Movement Arrows Keybinds 0 Fullscreen 1 Font 28/Smallcaps Map View 72x54 Zoom Use 0% Tactical HUD 1 Map Filters NONE Filters NONE Steam 1 RUN: 1561907a-3e19-4a9d-97ac-546da0e6b24a